fUSD/lending_fUSD_20240412
["ID","MTS","AMOUNT","RATE_DAILY","PERIOD"]
[322298561,1712940644632,-500.0,0.00048493,31]
[322298563,1712940644641,-642.73,0.00048493,31]
[322298565,1712940644650,-500.0,0.00048493,31]
[322298567,1712940644659,-500.0,0.00048493,31]
[322298569,1712940644668,-500.0,0.00048493,31]
[322298572,1712940644677,-500.0,0.00048493,31]
[322298573,1712940644687,-966.79,0.00048493,31]
[322298576,1712940644697,-500.0,0.00048493,31]
[322298578,1712940644706,-500.0,0.00048493,31]
[322298580,1712940644716,-500.0,0.00048493,31]
[322298582,1712940644725,-692.15,0.00048493,31]
[322298584,1712940644734,-1217.05,0.00048493,31]
[322298586,1712940644744,-150.0,0.000485,9]
[322298588,1712940644754,-153.21,0.00048541,2]
[322298590,1712940644763,-248.98461865,0.00048545,2]
[322298592,1712940644772,-361.0,0.00048569,30]
[322298594,1712940644781,-201.81111111,0.00048603,120]
[322298595,1712940644790,-917.0,0.00048765,7]
[322298596,1712940644800,-598.95650689,0.00048766,4]
[322298597,1712940644809,-686.84,0.00048767,31]
[322298598,1712940644818,-500.0,0.00048767,31]
[322298599,1712940644827,-500.0,0.00048767,31]
[322298600,1712940644836,-740.11,0.00048767,31]
[322298601,1712940644845,-1167.23,0.00048767,31]
[322298603,1712940644853,-500.0,0.00048767,31]
[322298604,1712940644865,-500.0,0.00048767,31]
[322298606,1712940644875,-500.0,0.00048767,31]
[322298608,1712940644884,-500.0,0.00048767,31]
[322298610,1712940644893,-500.0,0.00048767,31]
[322298612,1712940644902,-500.0,0.00048767,31]
[322298614,1712940644913,-358.08,0.00048767,31]
[322298617,1712940644922,-493.8,0.00048767,31]
[322298619,1712940644931,-500.0,0.00048767,31]
[322298621,1712940644942,-642.73,0.00048767,31]
[322298623,1712940644952,-500.0,0.00048767,31]
[322298625,1712940644963,-230.3,0.00048767,31]
[322298627,1712940644972,-634.62,0.00048767,31]
[322298629,1712940644981,-500.0,0.00048767,31]
[322298631,1712940644991,-966.79,0.00048767,31]
[322298633,1712940645000,-500.0,0.00048767,31]
[322298635,1712940645009,-604.08,0.00048767,31]
[322298637,1712940645018,-500.0,0.00048767,31]
[322298639,1712940645027,-692.15,0.00048767,31]
[322298641,1712940645036,-1217.05,0.00048767,31]
[322298643,1712940645045,-2426.4242003,0.00048904,25]
[322298645,1712940645054,-248.98461865,0.00048999,2]
[322298646,1712940645063,-1023.966369,0.00049,30]
[322298648,1712940645072,-150.0,0.00049,9]
[322298650,1712940645081,-7760.39203124,0.0004904,30]
[322298652,1712940645091,-260.52629873,0.0004904,4]
[322298654,1712940645101,-155.0,0.0004904,2]
[322298656,1712940645110,-686.84,0.00049041,31]
[322298658,1712940645120,-500.0,0.00049041,31]
[322298661,1712940645130,-500.0,0.00049041,31]
[322298663,1712940645139,-740.11,0.00049041,31]
[322298665,1712940645149,-1167.23,0.00049041,31]
[322298667,1712940645158,-500.0,0.00049041,31]
[322298669,1712940645168,-500.0,0.00049041,31]
[322298670,1712940645177,-500.0,0.00049041,31]
[322298672,1712940645186,-500.0,0.00049041,31]
[322298674,1712940645196,-500.0,0.00049041,31]
[322298677,1712940645205,-500.0,0.00049041,31]
[322298679,1712940645217,-500.0,0.00049041,31]
[322298681,1712940645227,-642.73,0.00049041,31]
[322298683,1712940645236,-500.0,0.00049041,31]
[322298684,1712940645244,-500.0,0.00049041,31]
[322298686,1712940645254,-966.79,0.00049041,31]
[322298689,1712940645263,-386.64,0.00049041,31]
[322298690,1712940645273,-621.2,0.00049041,31]
[322298693,1712940645283,-692.15,0.00049041,31]
[322298695,1712940645292,-1217.05,0.00049041,31]
[322298697,1712940645303,-361.0,0.0004905,30]
[322298699,1712940645312,-201.81111111,0.00049205,120]
[322298701,1712940645320,-686.84,0.00049315,120]
[322298703,1712940645329,-500.0,0.00049315,120]
[322298704,1712940645338,-635.67153933,0.00049315,120]
[322298706,1712940645347,-740.11,0.00049315,120]
[322298709,1712940645357,-1167.23,0.00049315,120]
[322298710,1712940645366,-500.0,0.00049315,120]
[322298713,1712940645376,-500.0,0.00049315,120]
[322298715,1712940645385,-500.0,0.00049315,120]
[322298717,1712940645395,-334.68,0.00049315,120]
[322298719,1712940645404,-500.0,0.00049315,120]
[322298721,1712940645413,-500.0,0.00049315,120]
[322298722,1712940645422,-500.0,0.00049315,120]
[322298725,1712940645433,-642.73,0.00049315,120]
[322298727,1712940645442,-500.0,0.00049315,120]
[322298730,1712940645451,-441.82000001,0.00049315,120]
[322298732,1712940645461,-966.79,0.00049315,120]
[322298734,1712940645470,-692.15,0.00049315,120]
[322298736,1712940645480,-1217.05,0.00049315,120]
[322298738,1712940645489,-200.0,0.00049424,30]
[322298741,1712940645498,-1000.0,0.00049424,60]
[322298744,1712940645509,-500.0,0.00049424,30]
[322298745,1712940645519,-248.98461865,0.00049453,2]
[322298748,1712940645528,-150.0,0.000495,10]
[322298753,1712940645538,-174.11,0.00049502,120]
[322298755,1712940645547,-2355.87794746,0.00049525,2]
[322298758,1712940645556,-361.0,0.00049531,30]
[322298761,1712940645565,-2426.4242003,0.0004957,26]
[322298764,1712940645574,-686.84,0.00049589,120]
[322298767,1712940645584,-500.0,0.00049589,120]
[322298770,1712940645593,-740.11,0.00049589,120]
[322298773,1712940645603,-1167.23,0.00049589,120]
[322298776,1712940645613,-500.0,0.00049589,120]
[322298779,1712940645622,-500.0,0.00049589,120]
[322298781,1712940645632,-500.0,0.00049589,120]
[322298783,1712940645641,-532.64,0.00049589,120]
[322298785,1712940645651,-500.0,0.00049589,120]
[322298788,1712940645659,-500.0,0.00049589,120]
[322298790,1712940645669,-642.73,0.00049589,120]
[322298792,1712940645678,-500.0,0.00049589,120]
[322298794,1712940645687,-966.79,0.00049589,120]
[322298796,1712940645697,-692.15,0.00049589,120]
[322298798,1712940645706,-1217.05,0.00049589,120]
[322298800,1712940645716,-201.81111111,0.00049808,120]
[322298802,1712940645726,-686.84,0.00049863,120]
[322298804,1712940645735,-500.0,0.00049863,120]
[322298806,1712940645745,-740.11,0.00049863,120]
[322298808,1712940645754,-1167.23,0.00049863,120]
[322298810,1712940645763,-500.0,0.00049863,120]
[322298812,1712940645772,-500.0,0.00049863,120]
[322298814,1712940645781,-500.0,0.00049863,120]
[322298816,1712940645790,-500.0,0.00049863,120]
[322298818,1712940645799,-500.0,0.00049863,120]
[322298820,1712940645810,-642.73,0.00049863,120]
[322298822,1712940645818,-500.0,0.00049863,120]
[322298824,1712940645828,-966.79,0.00049863,120]
[322298826,1712940645838,-692.15,0.00049863,120]
[322298828,1712940645847,-1217.05,0.00049863,120]
[322298830,1712940645856,-248.98461865,0.00049907,2]
[322298832,1712940645867,-1000.0,0.00049921,120]
[322298834,1712940645880,-568.93869636,0.00049999,31]
[322298836,1712940645889,-3307.31337207,0.0005,120]
[322298838,1712940645898,-1035.9853032,0.0005,120]
[322298840,1712940645907,-155.29994385,0.0005,2]
[322298842,1712940645918,-433.42300576,0.0005,28]
[322298844,1712940645927,-1170.88798134,0.0005,30]
[322298846,1712940645936,-34223.2520474,0.0005,120]
[322298848,1712940645945,-164.82933195,0.0005,2]
[322298850,1712940645955,-224.64,0.0005,120]
[322298852,1712940645966,-150.0,0.0005,10]
[322298854,1712940645976,-150.04,0.0005,27]
[322298856,1712940645985,-4895.0,0.0005,120]
[322298858,1712940645994,-686.84,0.00050136,120]
[322298860,1712940646004,-500.0,0.00050136,120]
[322298862,1712940646014,-740.11,0.00050136,120]
[322298864,1712940646024,-1167.23,0.00050136,120]
[322298867,1712940646033,-500.0,0.00050136,120]
[322298869,1712940646044,-500.0,0.00050136,120]
[322298871,1712940646053,-500.0,0.00050136,120]
[322298873,1712940646062,-500.0,0.00050136,120]
[322298875,1712940646072,-500.0,0.00050136,120]
[322298877,1712940646081,-642.73,0.00050136,120]
[322298879,1712940646092,-500.0,0.00050136,120]
[322298881,1712940646102,-966.79,0.00050136,120]
[322298883,1712940646111,-692.15,0.00050136,120]
[322298885,1712940646120,-1217.05,0.00050136,120]
[322298887,1712940646130,-2426.4242003,0.00050236,26]
[322298889,1712940646139,-248.98461865,0.00050361,120]
[322298891,1712940646149,-686.84,0.0005041,120]
[322298893,1712940646159,-500.0,0.0005041,120]
[322298894,1712940646168,-740.11,0.0005041,120]
[322298895,1712940646178,-1167.23,0.0005041,120]
[322298896,1712940646189,-500.0,0.0005041,120]
[322298897,1712940646198,-500.0,0.0005041,120]
[322298898,1712940646209,-500.0,0.0005041,120]
[322298899,1712940646219,-500.0,0.0005041,120]
[322298900,1712940646229,-500.0,0.0005041,120]
[322298901,1712940646240,-642.73,0.0005041,120]
[322298902,1712940646249,-500.0,0.0005041,120]
[322298903,1712940646259,-966.79,0.0005041,120]
[322298904,1712940646269,-692.15,0.0005041,120]
[322298905,1712940646278,-1217.05,0.0005041,120]
[322298906,1712940646287,-201.81111111,0.00050411,120]
[322298907,1712940646297,-417.95,0.00050469,2]
[322298908,1712940646307,-686.84,0.00050684,120]
[322298909,1712940646316,-500.0,0.00050684,120]
[322298911,1712940646326,-740.11,0.00050684,120]
[322298912,1712940646335,-1167.23,0.00050684,120]
[322298913,1712940646345,-500.0,0.00050684,120]
[322298914,1712940646356,-500.0,0.00050684,120]
[322298915,1712940646366,-500.0,0.00050684,120]
[322298916,1712940646376,-500.0,0.00050684,120]
[322298917,1712940646386,-500.0,0.00050684,120]
[322298918,1712940646397,-642.73,0.00050684,120]
[322298919,1712940646407,-634.10730576,0.00050684,120]
[322298920,1712940646417,-966.79,0.00050684,120]
[322298921,1712940646426,-692.15,0.00050684,120]
[322298922,1712940646435,-1217.05,0.00050684,120]
[322298923,1712940646446,-248.98461865,0.00050814,120]
[322298924,1712940646457,-184.24281591,0.000509,2]
[322298925,1712940646467,-2426.4242003,0.00050902,27]
[322298926,1712940646476,-686.84,0.00050958,120]
[322298927,1712940646486,-500.0,0.00050958,120]
[322298928,1712940646496,-740.11,0.00050958,120]
[322298929,1712940646505,-1167.23,0.00050958,120]
[322298930,1712940646515,-500.0,0.00050958,120]
[322298931,1712940646524,-500.0,0.00050958,120]
[322298932,1712940646533,-500.0,0.00050958,120]
[322298933,1712940646542,-158.25,0.00050958,120]
[322298934,1712940646552,-365.74,0.00050958,120]
[322298935,1712940646561,-642.73,0.00050958,120]
[322298936,1712940646571,-966.79,0.00050958,120]
[322298937,1712940646580,-692.15,0.00050958,120]
[322298938,1712940646590,-1217.05,0.00050958,120]
[322298939,1712940646599,-15869.61459454,0.00051,120]
[322298940,1712940646609,-150.0,0.00051,15]
[322298941,1712940646619,-201.81111111,0.00051014,120]
[322298943,1712940646628,-2355.87794746,0.0005115,2]
[322298945,1712940646638,-686.84,0.00051232,120]
[322298947,1712940646647,-562.06645461,0.00051232,120]
[322298949,1712940646657,-740.11,0.00051232,120]
[322298951,1712940646666,-1167.23,0.00051232,120]
[322298953,1712940646675,-500.0,0.00051232,120]
[322298955,1712940646684,-500.0,0.00051232,120]
[322298956,1712940646693,-500.0,0.00051232,120]
[322298957,1712940646703,-642.73,0.00051232,120]
[322298958,1712940646713,-966.79,0.00051232,120]
[322298959,1712940646722,-692.15,0.00051232,120]
[322298960,1712940646732,-1217.05,0.00051232,120]
[322298961,1712940646741,-248.98461865,0.00051268,120]
[322298962,1712940646750,-150.0,0.000513,30]
[322298963,1712940646760,-686.84,0.00051506,120]
[322298964,1712940646769,-740.11,0.00051506,120]
[322298965,1712940646778,-1167.23,0.00051506,120]
[322298966,1712940646788,-500.0,0.00051506,120]
[322298967,1712940646798,-500.0,0.00051506,120]
[322298968,1712940646808,-334.32,0.00051506,120]
[322298969,1712940646818,-642.73,0.00051506,120]
[322298970,1712940646828,-966.79,0.00051506,120]
[322298971,1712940646837,-692.15,0.00051506,120]
[322298972,1712940646847,-1217.05,0.00051506,120]
[322298973,1712940646857,-22224.05924283,0.00051507,2]
[322298974,1712940646867,-2426.4242003,0.00051569,28]
[322298975,1712940646878,-1000.0,0.000516,30]
[322298976,1712940646888,-201.81111111,0.00051616,120]
[322298978,1712940646898,-248.98461865,0.00051722,120]
[322298980,1712940646908,-1750.0,0.00051747,120]
[322298982,1712940646917,-686.84,0.0005178,120]
[322298985,1712940646929,-740.11,0.0005178,120]
[322298987,1712940646938,-1167.23,0.0005178,120]
[322298988,1712940646948,-421.37,0.0005178,120]
[322298991,1712940646960,-500.0,0.0005178,120]
[322298993,1712940646970,-642.73,0.0005178,120]
[322298995,1712940646980,-966.79,0.0005178,120]
[322298997,1712940646990,-692.15,0.0005178,120]
[322298999,1712940646999,-1217.05,0.0005178,120]
[322299001,1712940647009,-1000.0,0.000519,30]
[322299003,1712940647020,-152.76273069,0.00051954,52]
[322299005,1712940647030,-3355.53099439,0.00052054,4]
[322299006,1712940647043,-544.05162533,0.00052054,120]
[322299007,1712940647053,-3880.50089951,0.00052054,120]
[322299008,1712940647064,-13410.39801573,0.00052054,15]
[322299009,1712940647074,-10402.76313216,0.00052054,5]
[322299010,1712940647086,-544.05162533,0.00052054,120]
[322299011,1712940647096,-170.49660245,0.00052054,7]
[322299012,1712940647107,-46924.53374609,0.00052054,2]
[322299013,1712940647117,-686.84,0.00052054,120]
[322299014,1712940647127,-740.11,0.00052054,120]
[322299015,1712940647137,-1167.23,0.00052054,120]
[322299016,1712940647147,-500.0,0.00052054,120]
[322299017,1712940647160,-642.73,0.00052054,120]
[322299018,1712940647170,-966.79,0.00052054,120]
[322299019,1712940647179,-692.15,0.00052054,120]
[322299020,1712940647189,-1217.05,0.00052054,120]
[322299021,1712940647201,-2557.28,0.000521,120]
[322299022,1712940647211,-248.98461865,0.00052176,120]
[322299023,1712940647220,-201.81111111,0.00052219,120]
[322299024,1712940647230,-2426.4242003,0.00052235,29]
[322299025,1712940647240,-174.11,0.00052242,120]
[322299026,1712940647249,-686.84,0.00052328,120]
[322299027,1712940647259,-740.11,0.00052328,120]
[322299028,1712940647269,-1167.23,0.00052328,120]
[322299029,1712940647279,-386.19,0.00052328,120]
[322299030,1712940647289,-642.73,0.00052328,120]
[322299031,1712940647299,-966.79,0.00052328,120]
[322299032,1712940647309,-692.15,0.00052328,120]
[322299033,1712940647318,-1217.05,0.00052328,120]
[322299034,1712940647328,-686.84,0.00052602,120]
[322299035,1712940647337,-740.11,0.00052602,120]
[322299036,1712940647346,-1167.23,0.00052602,120]
[322299037,1712940647356,-642.73,0.00052602,120]
[322299038,1712940647366,-966.79,0.00052602,120]
[322299039,1712940647376,-692.15,0.00052602,120]
[322299040,1712940647385,-248.98461865,0.0005263,120]
[322299041,1712940647395,-10000.0,0.000527,120]
[322299042,1712940647405,-2355.87794746,0.00052775,2]
[322299043,1712940647414,-39959.6783,0.000528,2]
[322299044,1712940647423,-100000.0,0.000528,2]
[322299045,1712940647434,-434.75092779,0.000528,30]
[322299046,1712940647443,-201.81111111,0.00052822,120]
[322299047,1712940647453,-245000.0,0.00052857,2]
[322299048,1712940647463,-686.93345017,0.00052876,120]
[322299049,1712940647473,-740.19,0.00052876,120]
[322299050,1712940647483,-1167.27,0.00052876,120]
[322299051,1712940647493,-642.90514951,0.00052876,120]
[322299052,1712940647503,-966.91998154,0.00052876,120]
[322299053,1712940647513,-692.26,0.00052876,120]
[322299054,1712940647522,-1000.0,0.00052883,60]
[322299055,1712940647532,-500.0,0.00052883,30]
[322299056,1712940647542,-2426.4242003,0.00052901,30]
[322299057,1712940647552,-276.0,0.00053,100]
[322299058,1712940647562,-10000.0,0.00053,120]
[322299059,1712940647571,-248.98461865,0.00053084,120]
[322299060,1712940647582,-22224.05924283,0.00053217,2]
[322299061,1712940647592,-153.21,0.0005332,2]
[322299062,1712940647601,-500.0,0.00053424,30]
[322299063,1712940647611,-201.81111111,0.00053425,120]
[322299064,1712940647620,-276.0,0.000535,101]
[322299065,1712940647630,-248.98461865,0.00053538,120]
[322299066,1712940647640,-2426.4242003,0.00053567,31]
[322299067,1712940647650,-300.0,0.000537,30]
[322299068,1712940647659,-388.52046468,0.0005375,30]
[322299069,1712940647669,-487.98945431,0.00053972,35]
[322299070,1712940647679,-1020.7820945,0.0005399,2]
[322299071,1712940647689,-14280.1315442,0.0005399,2]
[322299072,1712940647699,-664.214315,0.0005399,2]
[322299073,1712940647710,-248.98461865,0.00053992,120]
[322299074,1712940647719,-3466.74939655,0.00053999,120]
[322299075,1712940647729,-3000.0,0.00053999,120]
[322299076,1712940647739,-52861.54764165,0.00054,120]
[322299077,1712940647748,-276.0,0.00054,102]
[322299078,1712940647757,-174.719999,0.00054,120]
[322299079,1712940647767,-389.83926516,0.0005401,40]
[322299080,1712940647777,-201.81111111,0.00054027,120]
[322299081,1712940647786,-2363.94,0.00054048,120]
[322299082,1712940647797,-3000.0,0.00054136,120]
[322299083,1712940647806,-2426.4242003,0.00054234,31]
[322299084,1712940647815,-500.0,0.00054246,120]
[322299085,1712940647825,-3000.0,0.00054273,120]
[322299086,1712940647834,-9380.0,0.000543,120]
[322299087,1712940647844,-150.0,0.0005431,30]
[322299088,1712940647854,-296.54500062,0.000544,31]
[322299089,1712940647864,-385773.24707408,0.000544,110]
[322299090,1712940647878,-1090.75676965,0.000544,120]
[322299091,1712940647887,-4136.00893682,0.000544,120]
[322299092,1712940647897,-152.0,0.000544,6]
[322299093,1712940647908,-2355.87794746,0.000544,2]
[322299094,1712940647917,-3000.0,0.0005441,120]
[322299095,1712940647927,-2645.90888244,0.00054497,64]
[322299096,1712940647937,-1000.0,0.000545,120]
[322299097,1712940648092,-276.0,0.000545,103]
[322299098,1712940648103,-317.3518024,0.00054553,120]
[322299099,1712940648113,-151.0,0.00054575,120]
[322299100,1712940648123,-201.81111111,0.0005463,120]
[322299101,1712940648133,-3355.85559396,0.000547,2]
[322299102,1712940648142,-300.0,0.000547,30]
[322299103,1712940648152,-197.15179241,0.000547,32]
[322299104,1712940648162,-10000.0,0.0005478,18]
[322299105,1712940648172,-500.0,0.00054794,30]
[322299106,1712940648181,-500.0,0.00054794,30]
[322299107,1712940648191,-500.0,0.00054794,30]
[322299108,1712940648201,-500.0,0.00054794,30]
[322299109,1712940648212,-545.5686271,0.00054794,30]
[322299110,1712940648221,-500.0,0.00054794,120]
[322299111,1712940648230,-500.0,0.00054794,120]
[322299112,1712940648239,-500.0,0.00054794,120]
[322299113,1712940648248,-500.0,0.00054794,120]
[322299114,1712940648257,-500.0,0.00054794,120]
[322299115,1712940648266,-500.0,0.00054794,120]
[322299116,1712940648275,-500.0,0.00054794,120]
[322299117,1712940648285,-1000.0,0.00054794,120]
[322299118,1712940648294,-1000.0,0.00054794,120]
[322299119,1712940648304,-1000.0,0.00054794,120]
[322299120,1712940648313,-210.04894623,0.00054794,120]
[322299121,1712940648323,-500.0,0.00054794,120]
[322299122,1712940648332,-500.0,0.00054794,120]
[322299123,1712940648342,-500.0,0.00054794,120]
[322299124,1712940648352,-500.0,0.00054794,120]
[322299125,1712940648361,-500.0,0.00054794,120]
[322299126,1712940648372,-500.0,0.00054794,120]
[322299127,1712940648383,-500.0,0.00054794,120]
[322299128,1712940648392,-500.0,0.00054794,120]
[322299129,1712940648401,-500.0,0.00054794,120]
[322299130,1712940648411,-218.76952378,0.00054794,120]
[322299131,1712940648421,-1000.0,0.00054794,120]
[322299132,1712940648430,-1000.0,0.00054794,120]
[322299133,1712940648439,-1000.0,0.00054794,120]
[322299134,1712940648449,-162.04141713,0.00054794,120]
[322299135,1712940648461,-2650.68380571,0.00054794,120]
[322299136,1712940648471,-531.91264923,0.00054794,4]
[322299137,1712940648480,-1441.66,0.00054794,120]
[322299138,1712940648489,-1441.66,0.00054794,120]
[322299139,1712940648498,-1441.66,0.00054794,120]
[322299140,1712940648507,-1441.66,0.00054794,120]
[322299141,1712940648517,-1441.66,0.00054794,120]
[322299142,1712940648527,-1441.66,0.00054794,120]
[322299143,1712940648538,-1441.66,0.00054794,120]
[322299144,1712940648548,-1441.66,0.00054794,120]
[322299145,1712940648557,-1768.85,0.00054794,120]
[322299146,1712940648568,-1768.85,0.00054794,120]
[322299147,1712940648578,-1768.85,0.00054794,120]
[322299148,1712940648587,-1768.85,0.00054794,120]
[322299149,1712940648596,-1768.85,0.00054794,120]
[322299150,1712940648606,-819.95729403,0.00054794,120]
[322299151,1712940648705,-408.47462872,0.00054794,120]
[322299152,1712940648720,-540.41807725,0.00054794,120]
[322299153,1712940648730,-806.86192299,0.00054794,120]
[322299154,1712940648744,-961.98807701,0.00054794,120]
[322299155,1712940648754,-417.51004299,0.00054794,120]
[322299156,1712940648767,-933.96988326,0.00054794,120]
[322299157,1712940648820,-4959.87,0.00046259,2]
[322299158,1712940648830,-500.0,0.00046575,31]
[322299159,1712940648840,-583.50496074,0.00046849,31]
[322299160,1712940648849,-1217.05,0.00052602,120]
[322299161,1712940648860,-1217.13,0.00052876,120]
[322299162,1712940648873,-417.37007375,0.00054794,120]
[322299163,1712940648883,-1768.85,0.00054794,120]
[322299164,1712940648893,-1768.85,0.00054794,120]
[322299165,1712940648902,-1768.85,0.00054794,120]
[322299166,1712940648914,-1768.85,0.00054794,120]
[322299167,1712940648924,-1768.85,0.00054794,120]
[322299168,1712940648935,-1768.85,0.00054794,120]
[322299169,1712940648945,-1768.85,0.00054794,120]
[322299170,1712940648957,-1768.85,0.00054794,120]
[322299171,1712940648968,-1768.85,0.00054794,120]
[322299172,1712940648979,-1768.85,0.00054794,120]
[322299173,1712940648989,-1768.85,0.00054794,120]
[322299174,1712940648999,-1768.85,0.00054794,120]
[322299175,1712940649008,-1768.85,0.00054794,120]
[322299176,1712940649018,-1768.85,0.00054794,120]
[322299177,1712940649029,-1768.85,0.00054794,120]
[322299178,1712940649038,-1768.92444578,0.00054794,120]
[322299179,1712940649049,-611.0,0.00054795,120]
[322299180,1712940649059,-500.0,0.00054795,120]
[322299181,1712940649069,-500.0,0.00054795,120]
[322299182,1712940649080,-500.0,0.00054795,120]
[322299183,1712940649090,-500.0,0.00054795,120]
[322299184,1712940649100,-500.0,0.00054795,120]
[322299185,1712940649110,-500.0,0.00054795,120]
[322299186,1712940649120,-500.0,0.00054795,120]
[322299187,1712940649130,-500.0,0.00054795,120]
[322299188,1712940649139,-500.0,0.00054795,120]
[322299189,1712940649148,-500.0,0.00054795,120]
[322299190,1712940649158,-500.0,0.00054795,120]
[322299191,1712940649167,-500.0,0.00054795,120]
[322299192,1712940649177,-500.0,0.00054795,120]
[322299193,1712940649186,-500.0,0.00054795,120]
[322299194,1712940649196,-500.0,0.00054795,120]
[322299195,1712940649205,-500.0,0.00054795,120]
[322299196,1712940649216,-500.0,0.00054795,120]
[322299197,1712940649225,-500.0,0.00054795,120]
[322299198,1712940649235,-500.0,0.00054795,120]
[322299199,1712940649245,-500.0,0.00054795,120]
[322299200,1712940649254,-500.0,0.00054795,120]
[322299201,1712940649263,-500.0,0.00054795,120]
[322299202,1712940649273,-500.0,0.00054795,120]
[322299203,1712940649282,-500.0,0.00054795,120]
[322299204,1712940649292,-557.0,0.00054795,120]
[322299205,1712940649301,-500.0,0.00054795,120]
[322299206,1712940649311,-500.0,0.00054795,120]
[322299207,1712940649320,-500.0,0.00054795,120]
[322299208,1712940649331,-500.0,0.00054795,120]
[322299209,1712940649340,-500.0,0.00054795,120]
[322299210,1712940649349,-500.0,0.00054795,120]
[322299211,1712940649359,-500.0,0.00054795,120]
[322299212,1712940649369,-385.95683865,0.00054795,120]
[322299213,1712940649383,-114.04316135,0.00054795,120]
[322299214,1712940649392,-500.0,0.00054795,120]
[322299215,1712940649401,-500.0,0.00054795,120]
[322299216,1712940649410,-500.0,0.00054795,120]
[322299217,1712940649419,-500.0,0.00054795,120]
[322299218,1712940649429,-500.0,0.00054795,120]
[322299219,1712940649438,-500.0,0.00054795,120]
[322299220,1712940649447,-500.0,0.00054795,120]
[322299221,1712940649457,-500.0,0.00054795,120]
[322299222,1712940649467,-500.0,0.00054795,120]
[322299223,1712940649477,-500.0,0.00054795,120]
[322299224,1712940649487,-500.0,0.00054795,120]
[322299225,1712940649496,-500.0,0.00054795,120]
[322299226,1712940649505,-500.0,0.00054795,120]
[322299227,1712940649514,-500.0,0.00054795,120]
[322299228,1712940649523,-500.0,0.00054795,120]
[322299229,1712940649532,-500.0,0.00054795,120]
[322299230,1712940649542,-500.0,0.00054795,120]
[322299231,1712940649551,-500.0,0.00054795,120]
[322299232,1712940649560,-500.0,0.00054795,120]
[322299233,1712940649570,-500.0,0.00054795,120]
[322299234,1712940649580,-500.0,0.00054795,120]
[322299235,1712940649590,-500.0,0.00054795,120]
[322299236,1712940649599,-500.0,0.00054795,120]
[322299237,1712940649609,-500.0,0.00054795,120]
[322299238,1712940649620,-500.0,0.00054795,120]
[322299239,1712940649629,-500.0,0.00054795,120]
[322299240,1712940649638,-500.0,0.00054795,120]
[322299241,1712940649648,-500.0,0.00054795,120]
[322299242,1712940649658,-500.0,0.00054795,120]
[322299243,1712940649667,-500.0,0.00054795,120]
[322299244,1712940649677,-500.0,0.00054795,120]
[322299245,1712940649687,-500.0,0.00054795,120]
[322299246,1712940649696,-500.0,0.00054795,120]
[322299247,1712940649706,-500.0,0.00054795,120]
[322299248,1712940649717,-82.20683865,0.00054795,120]
[322299249,1712940649734,-417.79316135,0.00054795,120]
[322299250,1712940649743,-17.5299871,0.00054795,120]
[322299251,1712940649801,-500.0,0.00046575,31]
[322299252,1712940649810,-248.98461865,0.00054446,120]
[322299253,1712940649820,-482.4700129,0.00054795,120]
[322299254,1712940649829,-500.0,0.00054795,120]